[Event "EYCC O18-ch 2024"]
[Site "Prague"]
[Date "2024.08.23"]
[Round "2.16"]
[White "Seidl, Jan"]
[Black "Pavicic, Karlo"]
[Result "1/2-1/2"]
[ECO "B20"]
[WhiteElo "2276"]
[BlackElo "1954"]
[Annotator "ChessBase"]
[PlyCount "112"]
[EventDate "2024.08.19"]
[EventType "swiss"]
[EventCountry "CZE"]
[SourceTitle "playchess.com"]
[Source "ChessBase"]
[SourceQuality "1"]
[TimeControl "5400+30"]

1. e4 {[%emt 0:00:04]} c5 {[%emt 0:00:17]} 2. c4 {[%emt 0:04:57]} Nc6 {[%emt 0:00:21]} 3. Nc3 {[%emt 0:01:28]} d6 {[%emt 0:02:04]} 4. Nge2 {[%emt 0:03:03]} g6 {[%emt 0:03:43]} 5. d4 {[%emt 0:01:48]} cxd4 {[%emt 0:00:08]} 6. Nxd4 {[%emt 0:00:05]} Bg7 {[%emt 0:02:53]} 7. Be3 {[%emt 0:01:15]} Bd7 {[%emt 0:05:10]} 8. Be2 {[%emt 0:02:39]} Nf6 {[%emt 0:04:41]} 9. O-O {[%emt 0:00:20]} O-O {[%emt 0:00:24]} 10. Qd2 {[%emt 0:01:09]} Ng4 {[%emt 0:06:51]} 11. Bxg4 {[%emt 0:01:02]} Bxg4 {[%emt 0:00:19]} 12. h3 {[%emt 0:06:58]} Bd7 {[%emt 0:01:35]} 13. f4 {[%emt 0:13:10]} Re8 {[%emt 0:12:40]} 14. Rad1 {[%emt 0:15:26]} Qa5 {[%emt 0:18:38]} 15. b3 {[%emt 0:12:05]} Rad8 {[%emt 0:02:23]} 16. f5 {[%emt 0:01:34]} Nxd4 {[%emt 0:07:34]} 17. Bxd4 {[%emt 0:00:03]} Bxd4+ {[%emt 0:00:09]} 18. Qxd4 {[%emt 0:00:05]} Qc5 {[%emt 0:00:10]} 19. Qxc5 {[%emt 0:05:36]} dxc5 {[%emt 0:00:08]} 20. Nd5 {[%emt 0:00:25]} gxf5 {[%emt 0:04:56]} 21. exf5 {[%emt 0:00:10]} f6 {[%emt 0:00:16]} 22. Nc7 {[%emt 0:06:23]} Rf8 {[%emt 0:00:26]} 23. Rd3 {[%emt 0:02:55]} Bc8 {[%emt 0:04:41]} 24. Nd5 {[%emt 0:00:18]} Kf7 {[%emt 0:02:08]} 25. Re3 {[%emt 0:00:48]} Rfe8 {[%emt 0:01:53]} 26. Rfe1 {[%emt 0:06:10]} Rd7 {[%emt 0:02:10]} 27. g4 {[%emt 0:04:11]} b5 {[%emt 0:00:40]} 28. Re6 {[%emt 0:01:58]} Rxd5 {[%emt 0:02:47]} 29. cxd5 {[%emt 0:00:04]} Bxe6 {[%emt 0:00:08]} 30. fxe6+ {[%emt 0:00:59]} Kg6 {[%emt 0:00:42]} 31. Rc1 {[%emt 0:00:06]} Rc8 {[%emt 0:00:16]} 32. Kf2 {[%emt 0:00:05]} f5 {[%emt 0:00:51]} 33. Ke3 {[%emt 0:02:07]} fxg4 {[%emt 0:03:19]} 34. hxg4 {[%emt 0:00:07]} Kf6 {[%emt 0:00:53]} 35. Ke4 {[%emt 0:00:22]} a5 {[%emt 0:00:57]} 36. Rf1+ {[%emt 0:01:17]} Kg6 {[%emt 0:00:15]} 37. Ke5 {[%emt 0:00:40]} c4 {[%emt 0:00:55]} 38. bxc4 {[%emt 0:00:26]} bxc4 {[%emt 0:00:06]} 39. Rc1 {[%emt 0:01:25]} c3 {[%emt 0:00:33]} 40. Rc2 {[%emt 0:01:15]} Rc4 {[%emt 0:00:31]} 41. a3 {[%emt 0:02:25]} h6 {[%emt 0:00:32]} 42. a4 {[%emt 0:01:14]} Kg5 {[%emt 0:00:34]} 43. d6 {[%emt 0:00:04]} Rc5+ {[%emt 0:00:09]} 44. Kd4 {[%emt 0:00:04]} exd6 {[%emt 0:00:14]} 45. e7 {[%emt 0:00:34]} Re5 {[%emt 0:00:21]} 46. Rxc3 {[%emt 0:00:04]} Rxe7 {[%emt 0:00:07]} 47. Rh3 {[%emt 0:00:15]} Re5 {[%emt 0:04:11]} 48. Rh5+ {[%emt 0:01:46]} Kg6 {[%emt 0:00:09]} 49. Rh1 {[%emt 0:00:05]} Rg5 {[%emt 0:00:05]} 50. Rh4 {[%emt 0:01:02]} Kg7 {[%emt 0:02:32]} 51. Kc4 {[%emt 0:00:07]} Rc5+ {[%emt 0:01:29]} 52. Kd4 {[%emt 0:00:05]} Kg6 {[%emt 0:00:38]} 53. Rh1 {[%emt 0:00:13]} Re5 {[%emt 0:00:58]} 54. Rh2 {[%emt 0:00:31]} Rg5 {[%emt 0:03:23]} 55. Rh4 {[%emt 0:00:06]} h5 {[%emt 0:00:11]} 56. gxh5+ {[%emt 0:00:26]} Rxh5 {[%emt 0:00:06]} 1/2-1/2

[Event "EYCC O18-ch 2024"]
[Site "Prague"]
[Date "2024.08.23"]
[Round "2.17"]
[White "Kasipour Azbari, Seyed Arvin"]
[Black "Belkaid, Sohan"]
[Result "0-1"]
[ECO "B23"]
[WhiteElo "2212"]
[BlackElo "2384"]
[Annotator "ChessBase"]
[PlyCount "82"]
[EventDate "2024.08.19"]
[EventType "swiss"]
[EventCountry "CZE"]
[SourceTitle "playchess.com"]
[Source "ChessBase"]
[SourceQuality "1"]
[TimeControl "5400+30"]

1. e4 {[%emt 0:00:30]} c5 {[%emt 0:00:14]} 2. Nc3 {[%emt 0:00:52]} d6 {[%emt 0:00:41]} 3. d4 {[%emt 0:00:11]} cxd4 {[%emt 0:00:07]} 4. Qxd4 {[%emt 0:00:02]} Nc6 {[%emt 0:00:12]} 5. Qd2 {[%emt 0:00:55]} g6 {[%emt 0:00:37]} 6. b3 {[%emt 0:00:56]} Bh6 {[%emt 0:00:43]} 7. f4 {[%emt 0:00:48]} f5 {[%emt 0:00:16]} 8. Bb2 {[%emt 0:08:38]} Nf6 {[%emt 0:00:15]} 9. O-O-O {[%emt 0:05:43]} fxe4 {[%emt 0:02:10]} 10. Nge2 {[%emt 0:04:00]} Be6 {[%emt 0:13:44]} 11. h3 {[%emt 0:04:29]} Rc8 {[%emt 0:24:41]} 12. g4 {[%emt 0:11:50]} Bg7 {[%emt 0:00:30]} 13. f5 {[%emt 0:11:51]} gxf5 {[%emt 0:10:07]} 14. gxf5 {[%emt 0:02:24]} Bxf5 {[%emt 0:16:45]} 15. Qg5 {[%emt 0:02:23]} Bg6 {[%emt 0:06:30]} 16. Nf4 {[%emt 0:03:03]} Ne5 {[%emt 0:00:28]} 17. Ne6 {[%emt 0:12:29]} Qa5 {[%emt 0:00:47]} 18. b4 {[%emt 0:08:52]} Nd3+ {[%emt 0:10:40]} 19. cxd3 {[%emt 0:01:56]} Qxg5+ {[%emt 0:00:31]} 20. Nxg5 {[%emt 0:00:02]} Nd5 {[%emt 0:00:14]} 21. dxe4 {[%emt 0:11:46]} Nxc3 {[%emt 0:01:04]} 22. Bxc3 {[%emt 0:00:01]} Rxc3+ {[%emt 0:01:00]} 23. Kd2 {[%emt 0:00:26]} O-O {[%emt 0:00:56]} 24. Ne6 {[%emt 0:00:29]} Rfc8 {[%emt 0:02:43]} 25. Nxg7 {[%emt 0:00:49]} Rc2+ {[%emt 0:01:15]} 26. Ke3 {[%emt 0:00:09]} Kxg7 {[%emt 0:00:43]} 27. Bd3 {[%emt 0:00:02]} Rxa2 {[%emt 0:00:42]} 28. Rc1 {[%emt 0:00:07]} Rxc1 {[%emt 0:01:33]} 29. Rxc1 {[%emt 0:00:02]} Kf6 {[%emt 0:00:46]} 30. Rc7 {[%emt 0:00:29]} b6 {[%emt 0:00:24]} 31. b5 {[%emt 0:00:13]} e6 {[%emt 0:01:32]} 32. Rd7 {[%emt 0:00:48]} Ke5 {[%emt 0:00:20]} 33. h4 {[%emt 0:00:20]} Rh2 {[%emt 0:01:22]} 34. Rxa7 {[%emt 0:01:54]} d5 {[%emt 0:00:24]} 35. Ra6 {[%emt 0:04:04]} d4+ {[%emt 0:00:18]} 36. Kf3 {[%emt 0:00:03]} Rh3+ {[%emt 0:00:18]} 37. Ke2 {[%emt 0:00:01]} Bxe4 {[%emt 0:00:18]} 38. Bc4 {[%emt 0:02:16]} d3+ {[%emt 0:00:27]} 39. Ke1 {[%emt 0:01:01]} Rh1+ {[%emt 0:00:40]} 40. Kd2 {[%emt 0:00:06]} Kd4 {[%emt 0:00:19]} 41. Bxe6 {[%emt 0:00:47]} Rh2+ {[%emt 0:00:09]} 0-1

[Event "EYCC O18-ch 2024"]
[Site "Prague"]
[Date "2024.08.24"]
[Round "3.1"]
[White "Sokolovsky, Yahli"]
[Black "Elmi, Saad Abobaker"]
[Result "1-0"]
[ECO "C72"]
[WhiteElo "2522"]
[BlackElo "2383"]
[Annotator "TA"]
[PlyCount "171"]
[EventDate "2024.08.19"]
[EventType "swiss"]
[EventCountry "CZE"]
[SourceTitle "playchess.com"]
[Source "ChessBase"]
[SourceQuality "1"]
[TimeControl "5400+30"]

{[%evp 69,171,12,12,12,12,12,12,0,0,0,0,0,0,0,0,0,0,0,0,0,0,0,5,0,0,0,0,0,5,5,5,0,5,5,5,5,5,5,10,10,45,45,45,46,54,54,54,54,54,54,59,8,8,8,8,8,8,8,8,8,8,8,8,8,8,8,8,8,8,8,8,8,8,0,8,0,8,8,8,8,8,8,8,8,8,8,29963,29965,29967,29968,29968,29968,29970,29971,29971,29972,29972,29973,29973,29974,29973,29974,29973,29968]} 1. e4 {[%emt 0:00:04]} e5 {[%emt 0:00:09]} 2. Nf3 {[%emt 0:00:04]} Nc6 {[%emt 0:00:10]} 3. Bb5 {[%emt 0:00:04]} a6 {[%emt 0:00:11]} 4. Ba4 {[%emt 0:00:05]} d6 {[%emt 0:00:09]} 5. O-O {[%emt 0:01:31]} Bd7 {[%emt 0:00:18]} 6. c4 {[%emt 0:02:30]} Nf6 {[%emt 0:10:14]} 7. Nc3 {[%emt 0:00:06]} g6 {[%emt 0:02:06]} 8. Bxc6 {[%emt 0:10:46]} Bxc6 {[%emt 0:04:03]} 9. d4 {[%emt 0:06:48]} Nxe4 {[%emt 0:15:30]} 10. Nxe4 {[%emt 0:00:49]} Bxe4 {[%emt 0:00:08]} 11. dxe5 {[%emt 0:09:34]} dxe5 {[%emt 0:03:50]} 12. Qe1 {[%emt 0:00:02]} f5 {[%emt 0:05:45]} 13. Ng5 {[%emt 0:01:14]} Qf6 {[%emt 0:00:09]} 14. Nxe4 {[%emt 0:02:37]} fxe4 {[%emt 0:00:05]} 15. Qxe4 {[%emt 0:02:02]} O-O-O {[%emt 0:00:37]} 16. Be3 {[%emt 0:02:13]} Qf5 {[%emt 0:00:54]} 17. Qh4 {[%emt 0:07:26]} Rd7 {[%emt 0:00:32]} 18. c5 {[%emt 0:01:47]} Be7 {[%emt 0:04:00]} 19. Qc4 {[%emt 0:06:39]} c6 {[%emt 0:04:20]} 20. b4 {[%emt 0:01:01]} Qd3 {[%emt 0:04:37]} 21. Qc1 {[%emt 0:04:18]} Rhd8 {[%emt 0:07:13]} 22. a4 {[%emt 0:00:49]} Qb3 {[%emt 0:03:12]} 23. b5 {[%emt 0:10:02]} cxb5 {[%emt 0:00:23]} 24. c6 {[%emt 0:02:48]} Rc7 {[%emt 0:00:45]} 25. axb5 {[%emt 0:00:07]} Qxb5 {[%emt 0:00:26]} 26. cxb7+ {[%emt 0:00:26]} Kxb7 {[%emt 0:00:43]} 27. Qb1 {[%emt 0:02:17]} Rd3 {[%emt 0:00:54]} 28. Ra5 {[%emt 0:04:54]} Qxb1 {[%emt 0:01:42]} 29. Rxb1+ {[%emt 0:00:02]} Kc6 {[%emt 0:01:10]} 30. Rxa6+ {[%emt 0:02:28]} Kd7 {[%emt 0:01:03]} 31. g3 {[%emt 0:01:49]} Rd6 {[%emt 0:02:22]} 32. Ra5 {[%emt 0:02:46]} Ke6 {[%emt 0:01:21]} 33. Rbb5 {[%emt 0:00:25]} Bf6 {[%emt 0:00:45]} 34. Kg2 {[%emt 0:00:02]} Rcd7 {[%emt 0:03:09]} 35. Kf3 {[%emt 0:00:52]} Rd5 {[%emt 0:00:45]} 36. Rb6+ {[%emt 0:01:50]} R7d6 {[%emt 0:00:53]} 37. Rxd5 {[%emt 0:00:02]} Kxd5 {[%emt 0:00:19]} 38. Rb7 {[%emt 0:00:47]} h5 {[%emt 0:01:30]} 39. Rb5+ {[%emt 0:00:27]} Ke6 {[%emt 0:00:18]} 40. Ke4 {[%emt 0:00:06]} Ra6 {[%emt 0:00:19]} 41. Rb4 {[%emt 0:00:10]} Be7 {[%emt 0:00:28]} 42. Rc4 {[%emt 0:00:32]} Bd6 {[%emt 0:00:40]} 43. h3 {[%emt 0:00:18]} Ra2 {[%emt 0:01:37]} 44. g4 {[%emt 0:02:11]} hxg4 {[%emt 0:00:42]} 45. hxg4 {[%emt 0:00:02]} Rb2 {[%emt 0:00:13]} 46. Rc6 {[%emt 0:00:38]} Rb4+ {[%emt 0:00:35]} 47. Kf3 {[%emt 0:00:02]} Kd5 {[%emt 0:01:34]} 48. Ra6 {[%emt 0:00:02]} Rc4 {[%emt 0:02:03]} 49. Kg3 {[%emt 0:00:42]} Rc6 {[%emt 0:01:11]} 50. Ra7 {[%emt 0:00:07]} Rc7 {[%emt 0:00:34]} 51. Ra5+ {[%emt 0:00:01]} Ke6 {[%emt 0:00:44]} 52. Ra6 {[%emt 0:00:02]} Kd5 {[%emt 0:00:48]} 53. Kh4 {[%emt 0:00:35]} Rc4 {[%emt 0:01:13]} 54. Kg5 {[%emt 0:02:28]} Be7+ {[%emt 0:02:23]} 55. Kxg6 {[%emt 0:00:12]} Rxg4+ {[%emt 0:00:03]} 56. Kf5 {[%emt 0:00:17]} Rg8 {[%emt 0:01:09]} 57. Ra5+ {[%emt 0:00:22]} Kc6 {[%emt 0:00:11]} 58. Kxe5 {[%emt 0:04:39]} (58. Rxe5 Bh4) 58... Bd6+ {[%emt 0:01:03]} 59. Ke4 {[%emt 0:00:16]} Re8+ {[%emt 0:00:25]} 60. Kd4 {[%emt 0:00:08]} (60. Kf5 $14) 60... Bc7 $11 {[%emt 0:02:55]} 61. Ra6+ {[%emt 0:03:01]} Kb5 {[%emt 0:00:53]} 62. Ra3 {[%emt 0:01:17]} Bb6+ {[%emt 0:01:11]} 63. Kd5 {[%emt 0:00:01]} Kb4 {[%emt 0:00:44]} 64. Rd3 {[%emt 0:01:35]} Rd8+ {[%emt 0:00:13]} 65. Ke4 {[%emt 0:00:01]} Re8+ {[%emt 0:00:20]} 66. Kf3 {[%emt 0:02:20]} Kc4 {[%emt 0:01:28]} 67. Ke2 {[%emt 0:01:41]} Bxe3 {[%emt 0:02:32]} 68. Rxe3 {[%emt 0:00:06]} Rf8 {[%emt 0:00:22]} 69. Rf3 {[%emt 0:00:25]} Re8+ {[%emt 0:00:27]} 70. Kd2 {[%emt 0:00:05]} Rd8+ {[%emt 0:00:35]} 71. Ke2 {[%emt 0:00:01]} Re8+ {[%emt 0:00:06]} 72. Re3 {[%emt 0:00:03]} Rf8 {[%emt 0:00:10]} 73. f3 {[%emt 0:00:39]} Kd4 {[%emt 0:00:41]} 74. Re4+ {[%emt 0:00:02]} Kd5 {[%emt 0:00:17]} 75. Ke3 {[%emt 0:00:02]} Rf6 {[%emt 0:01:35]} 76. Re8 {[%emt 0:00:19]} Rf7 {[%emt 0:03:18]} 77. f4 {[%emt 0:00:47]} Rf6 $2 {[%emt 0:01:44][%mdl 8192]} (77... Kc6 $11) 78. Kf3 {[%emt 0:00:18]} Rf7 {[%emt 0:00:24]} 79. Kg4 {[%emt 0:00:08]} Rg7+ {[%emt 0:00:35]} 80. Kf5 {[%emt 0:00:34]} Kd6 {[%emt 0:00:56]} 81. Kf6 {[%emt 0:00:11]} Rg4 {[%emt 0:00:23]} 82. f5 {[%emt 0:01:10]} Kd7 {[%emt 0:00:21]} 83. Re1 {[%emt 0:00:17]} Rf4 {[%emt 0:00:36]} 84. Kg6 {[%emt 0:00:12]} Rg4+ {[%emt 0:00:28]} 85. Kf7 {[%emt 0:00:01]} Rf4 {[%emt 0:00:24]} 86. Rd1+ {[%emt 0:00:05]} 1-0

[Event "EYCC O18-ch 2024"]
[Site "Prague"]
[Date "2024.08.24"]
[Round "3.1"]
[White "Gonzalez Castillo, Jose Javier"]
[Black "Serrano Almendros, Angel"]
[Result "1/2-1/2"]
[ECO "C10"]
[WhiteElo "2196"]
[BlackElo "2310"]
[Annotator "RC"]
[PlyCount "137"]
[EventDate "2024.08.19"]
[EventType "swiss"]
[EventCountry "CZE"]
[SourceTitle "playchess.com"]
[Source "ChessBase"]
[SourceQuality "1"]
[TimeControl "5400+30"]

1. e4 {[%emt 0:00:28]} e6 {[%emt 0:00:11]} 2. d4 {[%emt 0:00:06]} d5 {[%emt 0:00:06]} 3. Nc3 {[%emt 0:00:04]} h6 {[%emt 0:00:03]} 4. Bd3 {[%emt 0:02:24]} Nc6 {[%emt 0:00:06]} 5. Be3 {[%emt 0:03:17]} Nb4 {[%emt 0:15:14]} 6. Be2 {[%emt 0:04:08]} dxe4 {[%emt 0:06:45]} 7. Nxe4 {[%emt 0:00:44]} Nf6 {[%emt 0:00:04]} 8. Nxf6+ {[%emt 0:02:24]} Qxf6 {[%emt 0:00:05]} 9. a3 {[%emt 0:07:08]} Nd5 {[%emt 0:00:56]} 10. Nf3 {[%emt 0:00:13]} Nxe3 {[%emt 0:16:07]} 11. fxe3 {[%emt 0:00:20]} Bd6 {[%emt 0:00:04]} 12. O-O {[%emt 0:03:13]} Qe7 {[%emt 0:00:26]} 13. c4 {[%emt 0:01:53]} c6 {[%emt 0:04:51]} 14. b4 {[%emt 0:04:28]} e5 {[%emt 0:05:46]} 15. c5 {[%emt 0:08:25]} Bc7 {[%emt 0:00:21]} 16. Nxe5 {[%emt 0:00:07]} Bxe5 {[%emt 0:08:32]} 17. dxe5 {[%emt 0:00:10]} O-O {[%emt 0:02:05]} 18. Bc4 {[%emt 0:01:39]} Qxe5 {[%emt 0:05:08]} 19. Qd4 {[%emt 0:03:14]} Qe7 {[%emt 0:01:18]} 20. Qd6 {[%emt 0:06:06]} Qxd6 {[%emt 0:08:27]} 21. cxd6 {[%emt 0:00:02]} Be6 {[%emt 0:00:07]} 22. Bxe6 {[%emt 0:00:17]} fxe6 {[%emt 0:00:01]} 23. e4 {[%emt 0:00:11]} e5 {[%emt 0:01:10]} 24. Rac1 {[%emt 0:00:32]} Rad8 {[%emt 0:01:09]} 25. Rc5 {[%emt 0:01:13]} Rfe8 {[%emt 0:00:57]} 26. Rf5 {[%emt 0:01:25]} Rxd6 {[%emt 0:00:08]} 27. Rcxe5 {[%emt 0:00:38]} Rd1+ {[%emt 0:01:05]} 28. Kf2 {[%emt 0:00:04]} Rd2+ {[%emt 0:00:30]} 29. Kg1 {[%emt 0:06:46]} Rxe5 {[%emt 0:05:26]} 30. Rxe5 {[%emt 0:01:11]} Kf7 {[%emt 0:00:02]} 31. Rf5+ {[%emt 0:01:02]} Ke7 {[%emt 0:07:26]} 32. Re5+ {[%emt 0:00:20]} Kf6 {[%emt 0:00:12]} 33. Rf5+ {[%emt 0:00:42]} Ke6 {[%emt 0:00:01]} 34. Rf8 {[%emt 0:02:01]} Ra2 {[%emt 0:00:07]} 35. Rb8 {[%emt 0:03:05]} b5 {[%emt 0:03:36]} 36. Re8+ {[%emt 0:03:01]} Kf7 {[%emt 0:07:46]} 37. Rc8 {[%emt 0:00:14]} Rxa3 {[%emt 0:00:04]} 38. Rxc6 {[%emt 0:00:19]} Ra4 {[%emt 0:00:17]} 39. e5 {[%emt 0:00:34]} Rxb4 {[%emt 0:00:54]} 40. Rc7+ {[%emt 0:00:02]} Kg6 {[%emt 0:00:37]} 41. Rxa7 {[%emt 0:00:09]} Re4 {[%emt 0:00:06]} 42. Ra6+ {[%emt 0:02:03]} Kf5 {[%emt 0:01:02]} 43. Ra7 {[%emt 0:00:07]} g6 {[%emt 0:00:59]} 44. Rb7 {[%emt 0:01:02]} Rxe5 {[%emt 0:00:07]} 45. Kf2 {[%emt 0:00:02]} h5 {[%emt 0:01:35]} 46. h4 {[%emt 0:01:26]} g5 {[%emt 0:00:31]} 47. hxg5 {[%emt 0:00:44]} Kxg5 {[%emt 0:00:02]} 48. Kf3 {[%emt 0:00:58]} Kf5 {[%emt 0:00:04]} 49. Rb6 {[%emt 0:00:36]} Rc5 {[%emt 0:00:17]} 50. Ke3 {[%emt 0:01:59]} Kg4 {[%emt 0:00:15]} 51. Rg6+ {[%emt 0:00:20]} Rg5 {[%emt 0:00:07]} 52. Rc6 {[%emt 0:01:07]} Kg3 {[%emt 0:00:08]} 53. Rc2 {[%emt 0:00:03]} h4 {[%emt 0:01:46]} 54. Rb2 {[%emt 0:00:48]} Rg4 {[%emt 0:00:59]} 55. Rxb5 {[%emt 0:00:54]} Kxg2 {[%emt 0:00:07]} 56. Rb2+ {[%emt 0:00:26]} Kg3 {[%emt 0:00:23]} 57. Rb1 {[%emt 0:00:09]} Kh2 {[%emt 0:01:28]} 58. Kf3 {[%emt 0:01:13]} Rg3+ {[%emt 0:00:21]} 59. Kf4 {[%emt 0:00:29]} h3 {[%emt 0:00:31]} 60. Rb2+ {[%emt 0:01:36]} Rg2 {[%emt 0:00:06]} 61. Rb3 {[%emt 0:00:08]} Rg8 {[%emt 0:00:22]} 62. Rb2+ {[%emt 0:01:15]} Kh1 {[%emt 0:00:04]} 63. Kf3 {[%emt 0:00:47]} h2 {[%emt 0:00:20]} 64. Rb1+ {[%emt 0:00:13]} Rg1 {[%emt 0:00:02]} 65. Rb2 {[%emt 0:00:09]} Ra1 {[%emt 0:00:33]} 66. Kg3 {[%emt 0:00:21]} Ra3+ {[%emt 0:01:11]} 67. Kf2 {[%emt 0:00:05]} Ra1 {[%emt 0:00:15]} 68. Kg3 {[%emt 0:00:04]} Kg1 {[%emt 0:00:16]} 69. Rg2+ 1/2-1/2

[Event "EYCC O18-ch 2024"]
[Site "Prague"]
[Date "2024.08.24"]
[Round "3.2"]
[White "Belkaid, Sohan"]
[Black "Klimkowski, Jan"]
[Result "1/2-1/2"]
[ECO "C50"]
[WhiteElo "2384"]
[BlackElo "2508"]
[Annotator "RC"]
[PlyCount "168"]
[EventDate "2024.08.19"]
[EventType "swiss"]
[EventCountry "CZE"]
[SourceTitle "playchess.com"]
[Source "ChessBase"]
[SourceQuality "1"]
[TimeControl "5400+30"]

1. e4 {[%emt 0:00:07]} e5 {[%emt 0:00:04]} 2. Nf3 {[%emt 0:00:13]} Nc6 {[%emt 0:00:03]} 3. Bc4 {[%emt 0:00:16]} Nf6 {[%emt 0:00:07]} 4. d3 {[%emt 0:00:22]} Bc5 {[%emt 0:00:15]} 5. Bg5 {[%emt 0:01:21]} h6 {[%emt 0:00:21]} 6. Bh4 {[%emt 0:00:13]} Be7 {[%emt 0:00:23]} 7. Bg3 {[%emt 0:00:29]} d6 {[%emt 0:00:17]} 8. a4 {[%emt 0:00:22]} O-O {[%emt 0:00:21]} 9. h3 {[%emt 0:00:38]} Kh8 {[%emt 0:00:42]} 10. O-O {[%emt 0:06:37]} Nh7 {[%emt 0:00:22]} 11. Nc3 {[%emt 0:00:55]} f5 {[%emt 0:00:23]} 12. exf5 {[%emt 0:00:49]} Bxf5 {[%emt 0:00:06]} 13. Nd5 {[%emt 0:00:29]} Nf6 {[%emt 0:01:24]} 14. Re1 {[%emt 0:10:18]} Nxd5 {[%emt 0:04:18]} 15. Bxd5 {[%emt 0:00:11]} Bf6 {[%emt 0:01:13]} 16. a5 {[%emt 0:08:36]} a6 {[%emt 0:02:28]} 17. c3 {[%emt 0:05:42]} Qd7 {[%emt 0:02:06]} 18. Re3 {[%emt 0:12:25]} Rab8 {[%emt 0:14:11]} 19. Bb3 {[%emt 0:10:57]} Bh7 {[%emt 0:08:20]} 20. d4 {[%emt 0:11:29]} e4 {[%emt 0:03:44]} 21. Nd2 {[%emt 0:00:21]} d5 {[%emt 0:01:20]} 22. Ba4 {[%emt 0:01:51]} Qf7 {[%emt 0:04:35]} 23. Nb3 {[%emt 0:03:58]} Ne7 {[%emt 0:05:21]} 24. Nc5 {[%emt 0:03:53]} Nf5 {[%emt 0:01:11]} 25. Nd7 {[%emt 0:01:20]} Nxe3 {[%emt 0:05:19]} 26. fxe3 {[%emt 0:00:09]} Bg5 {[%emt 0:02:36]} 27. Qe2 {[%emt 0:01:19]} Rbd8 {[%emt 0:00:17]} 28. Nxf8 {[%emt 0:01:11]} Rxf8 {[%emt 0:00:01]} 29. h4 {[%emt 0:05:05]} Bf6 {[%emt 0:04:16]} 30. Rf1 {[%emt 0:00:52]} Qe7 {[%emt 0:00:05]} 31. Qg4 {[%emt 0:01:27]} c6 {[%emt 0:00:30]} 32. Bd1 {[%emt 0:00:56]} Bg8 {[%emt 0:00:54]} 33. Qf4 {[%emt 0:01:30]} Be6 {[%emt 0:01:02]} 34. Qd6 {[%emt 0:03:52]} Qxd6 {[%emt 0:01:00]} 35. Bxd6 {[%emt 0:00:04]} Rd8 {[%emt 0:04:30]} 36. Bg3 {[%emt 0:00:18]} Kh7 {[%emt 0:06:22]} 37. Bh5 {[%emt 0:00:38]} Kg8 {[%emt 0:01:02]} 38. b4 {[%emt 0:03:19]} Rd7 {[%emt 0:00:06]} 39. Be8 {[%emt 0:00:35]} Re7 {[%emt 0:00:07]} 40. Bg6 {[%emt 0:00:23]} Bf7 {[%emt 0:00:17]} 41. Bf5 {[%emt 0:00:50]} Re8 {[%emt 0:01:47]} 42. Kh2 {[%emt 0:01:56]} Be6 {[%emt 0:00:26]} 43. Bg6 {[%emt 0:00:32]} Rd8 {[%emt 0:00:21]} 44. Rf2 {[%emt 0:00:50]} Bg4 {[%emt 0:01:37]} 45. Rf4 {[%emt 0:00:38]} Bd7 {[%emt 0:00:23]} 46. Rf1 {[%emt 0:00:24]} Ra8 {[%emt 0:03:30]} 47. Rf2 {[%emt 0:00:38]} Rf8 {[%emt 0:00:27]} 48. Rf1 {[%emt 0:00:50]} Ra8 {[%emt 0:00:03]} 49. Rf2 {[%emt 0:00:23]} Be8 {[%emt 0:00:36]} 50. Bf5 {[%emt 0:00:14]} Kf7 {[%emt 0:01:46]} 51. Kh3 {[%emt 0:00:36]} Ke7 {[%emt 0:00:34]} 52. Bc7 {[%emt 0:00:54]} h5 {[%emt 0:00:50]} 53. Kg3 {[%emt 0:00:52]} Bf7 {[%emt 0:04:09]} 54. Bf4 {[%emt 0:00:49]} Rf8 {[%emt 0:00:02]} 55. Bc7 {[%emt 0:00:56]} Be6 {[%emt 0:04:55]} 56. Bxe6 {[%emt 0:00:49]} Kxe6 {[%emt 0:00:01]} 57. Bf4 {[%emt 0:00:16]} Bd8 {[%emt 0:01:03]} 58. Rb2 {[%emt 0:00:34]} Be7 {[%emt 0:01:04]} 59. Kh3 {[%emt 0:00:44]} Bd8 {[%emt 0:03:46]} 60. Rb1 {[%emt 0:00:16]} Rf7 {[%emt 0:01:19]} 61. Ra1 {[%emt 0:00:23]} Rf8 {[%emt 0:00:21]} 62. Rb1 {[%emt 0:00:26]} b6 {[%emt 0:00:45]} 63. axb6 {[%emt 0:00:20]} Bxb6 {[%emt 0:00:01]} 64. g4 {[%emt 0:00:27]} hxg4+ {[%emt 0:00:39]} 65. Kxg4 {[%emt 0:00:05]} a5 {[%emt 0:00:30]} 66. bxa5 {[%emt 0:00:36]} Bxa5 {[%emt 0:00:03]} 67. Ra1 {[%emt 0:00:10]} Bxc3 {[%emt 0:01:33]} 68. Rc1 {[%emt 0:00:09]} Bd2 {[%emt 0:03:47]} 69. Rxc6+ {[%emt 0:00:08]} Kf7 {[%emt 0:00:04]} 70. Rd6 {[%emt 0:01:02]} Ra8 {[%emt 0:00:02]} 71. Rxd5 {[%emt 0:01:35]} Ra3 {[%emt 0:00:01]} 72. Rd7+ {[%emt 0:00:24]} Ke6 {[%emt 0:00:45]} 73. Rd6+ {[%emt 0:00:38]} Kf7 {[%emt 0:01:20]} 74. Kf5 {[%emt 0:00:48]} Bxe3 {[%emt 0:00:03]} 75. Kxe4 {[%emt 0:00:46]} Bxf4 {[%emt 0:01:00]} 76. Kxf4 {[%emt 0:00:01]} Rh3 {[%emt 0:00:06]} 77. Kg5 {[%emt 0:00:42]} Rg3+ {[%emt 0:00:02]} 78. Kf5 {[%emt 0:00:09]} Rf3+ {[%emt 0:00:24]} 79. Ke5 {[%emt 0:01:01]} Rh3 {[%emt 0:00:06]} 80. Rd7+ {[%emt 0:00:20]} Ke8 {[%emt 0:00:11]} 81. Kd6 {[%emt 0:00:34]} Rxh4 {[%emt 0:00:14]} 82. d5 {[%emt 0:00:15]} Ra4 {[%emt 0:01:01]} 83. Rxg7 Ra6+ {[%emt 0:00:06]} 84. Kc5 {[%emt 0:01:15]} Kd8 {[%emt 0:00:04]} 1/2-1/2